fUST/lending_fUST_20260418
["ID","MTS","AMOUNT","RATE_DAILY","PERIOD"]
[420742738,1776522174057,857.78,0.00024657,120]
[420742739,1776522174197,857.78,0.00024657,120]
[420742740,1776522174452,857.78,0.00024657,120]
[420742741,1776522174684,857.86,0.00024657,120]
[420742742,1776522174949,500.0,0.00024657,120]
[420742743,1776522175390,648.36,0.00024657,120]
[420742744,1776522176900,500.0,0.00024657,120]
[420742745,1776522177122,500.0,0.00024657,120]
[420742746,1776522177353,500.0,0.00024657,120]
[420742747,1776522177618,510.87,0.00024657,120]
[420742748,1776522187104,500.0,0.00024657,120]
[420742749,1776522187346,500.0,0.00024657,120]
[420742750,1776522187590,500.0,0.00024657,120]
[420742751,1776522187854,336.6,0.00024657,120]
[420742762,1776522218240,500.0,0.00024657,120]
[420742763,1776522218461,500.0,0.00024657,120]
[420742764,1776522218687,500.0,0.00024657,120]
[420742765,1776522218916,500.0,0.00024657,120]
[420742766,1776522219152,500.0,0.00024657,120]
[420742767,1776522219406,500.0,0.00024657,120]
[420742768,1776522219628,500.0,0.00024657,120]
[420742769,1776522219848,500.0,0.00024657,120]
[420742770,1776522220099,171.72,0.00024657,120]
[420742771,1776522232759,500.0,0.00024657,120]
[420742772,1776522232987,500.0,0.00024657,120]
[420742773,1776522233227,500.0,0.00024657,120]
[420742774,1776522233472,500.0,0.00024657,120]
[420742775,1776522233703,500.0,0.00024657,120]
[420742776,1776522233933,500.0,0.00024657,120]
[420742777,1776522234176,500.0,0.00024657,120]
[420742778,1776522234398,500.0,0.00024657,120]
[420742779,1776522234628,500.0,0.00024657,120]
[420742780,1776522234853,500.0,0.00024657,120]
[420742781,1776522235092,500.0,0.00024657,120]
[420742782,1776522235317,426.68,0.00024657,120]
[420742783,1776522236418,500.0,0.00024657,120]
[420742784,1776522236643,500.0,0.00024657,120]
[420742785,1776522236887,500.0,0.00024657,120]
[420742786,1776522237347,500.0,0.00024657,120]
[420742787,1776522237573,500.0,0.00024657,120]
[420742788,1776522237799,500.0,0.00024657,120]
[420742789,1776522238018,500.0,0.00024657,120]
[420742790,1776522238243,500.0,0.00024657,120]
[420742791,1776522238476,500.0,0.00024657,120]
[420742792,1776522238710,500.0,0.00024657,120]
[420742793,1776522238937,500.0,0.00024657,120]
[420742794,1776522239165,500.0,0.00024657,120]
[420742795,1776522239390,500.0,0.00024657,120]
[420742796,1776522239842,381.0,0.00024657,120]
[420742798,1776522243034,500.0,0.00024657,120]
[420742799,1776522243266,500.0,0.00024657,120]
[420742800,1776522243507,500.0,0.00024657,120]
[420742801,1776522243754,500.0,0.00024657,120]
[420742802,1776522244086,500.0,0.00024657,120]
[420742803,1776522244528,500.0,0.00024657,120]
[420742804,1776522244761,500.0,0.00024657,120]
[420742805,1776522244987,500.0,0.00024657,120]
[420742806,1776522245332,500.0,0.00024657,120]
[420742807,1776522245563,500.0,0.00024657,120]
[420742808,1776522245829,500.0,0.00024657,120]
[420742809,1776522246066,500.0,0.00024657,120]
[420742810,1776522246303,500.0,0.00024657,120]
[420742811,1776522246529,500.0,0.00024657,120]
[420742812,1776522246760,500.0,0.00024657,120]
[420742813,1776522247063,500.0,0.00024657,120]
[420742814,1776522247295,500.0,0.00024657,120]
[420742815,1776522247528,500.0,0.00024657,120]
[420742816,1776522247750,500.0,0.00024657,120]
[420742818,1776522247975,500.0,0.00024657,120]
[420742819,1776522248213,500.0,0.00024657,120]
[420742820,1776522248428,500.0,0.00024657,120]
[420742821,1776522248485,500.0,0.00024657,120]
[420742822,1776522248649,500.0,0.00024657,120]
[420742823,1776522248709,570.82,0.00024657,120]
[420742824,1776522248887,500.0,0.00024657,120]
[420742825,1776522249131,500.0,0.00024657,120]
[420742826,1776522249374,500.0,0.00024657,120]
[420742827,1776522249609,500.0,0.00024657,120]
[420742828,1776522249839,500.0,0.00024657,120]
[420742829,1776522250061,500.0,0.00024657,120]
[420742830,1776522250327,500.0,0.00024657,120]
[420742831,1776522250531,500.0,0.00024657,120]
[420742832,1776522250750,500.0,0.00024657,120]
[420742833,1776522250981,500.0,0.00024657,120]
[420742834,1776522251206,649.28,0.00024657,120]
[420742835,1776522257308,500.0,0.00024657,120]
[420742836,1776522257550,500.0,0.00024657,120]
[420742838,1776522261500,500.0,0.00024657,120]
[420742839,1776522261890,365.93047007,0.00024657,120]
[420742840,1776522262581,500.0,0.00024657,120]
[420742841,1776522262820,500.0,0.00024657,120]
[420742842,1776522262883,250.0,0.00024657,120]
[420742843,1776522263050,535.90397255,0.00024657,120]
[420742844,1776522263113,250.0,0.00024657,120]
[420742845,1776522263346,250.0,0.00024657,120]
[420742846,1776522263586,250.0,0.00024657,120]
[420742847,1776522263831,250.0,0.00024657,120]
[420742848,1776522264056,250.0,0.00024657,120]
[420742849,1776522264276,250.0,0.00024657,120]
[420742850,1776522264496,250.0,0.00024657,120]
[420742851,1776522264716,250.0,0.00024657,120]
[420742852,1776522264962,250.0,0.00024657,120]
[420742853,1776522265144,500.0,0.00024657,120]
[420742854,1776522265220,250.0,0.00024657,120]
[420742855,1776522265273,500.0,0.00024657,120]
[420742856,1776522265441,250.0,0.00024657,120]
[420742857,1776522265594,500.0,0.00024657,120]
[420742858,1776522265666,250.0,0.00024657,120]
[420742859,1776522265887,250.0,0.00024657,120]
[420742860,1776522265945,500.0,0.00024657,120]
[420742861,1776522266150,250.0,0.00024657,120]
[420742862,1776522266205,500.0,0.00024657,120]
[420742863,1776522266383,500.0,0.00024657,120]
[420742864,1776522266439,250.0,0.00024657,120]
[420742865,1776522266641,250.0,0.00024657,120]
[420742866,1776522266707,500.0,0.00024657,120]
[420742867,1776522266828,250.0,0.00024657,120]
[420742868,1776522267065,500.0,0.00024657,120]
[420742869,1776522267133,250.0,0.00024657,120]
[420742870,1776522267189,500.0,0.00024657,120]
[420742871,1776522267295,500.0,0.00024657,120]
[420742872,1776522267518,500.0,0.00024657,120]
[420742873,1776522267742,500.0,0.00024657,120]
[420742874,1776522267964,500.0,0.00024657,120]
[420742875,1776522268184,500.0,0.00024657,120]
[420742876,1776522268405,329.0,0.00024657,120]
[420742877,1776522273312,255.97251,0.00024657,120]
[420742878,1776522288552,500.0,0.00024657,120]
[420742879,1776522288773,500.0,0.00024657,120]
[420742880,1776522288998,500.0,0.00024657,120]
[420742881,1776522289214,500.0,0.00024657,120]
[420742882,1776522289446,173.35993312,0.00024657,120]
[420742884,1776522309603,500.0,0.00024657,120]
[420742885,1776522309843,500.0,0.00024657,120]
[420742886,1776522310080,500.0,0.00024657,120]
[420742887,1776522322969,500.0,0.00024657,120]
[420742888,1776522323205,500.0,0.00024657,120]
[420742889,1776522323637,500.0,0.00024657,120]
[420742890,1776522323715,566.42,0.00024657,120]
[420742891,1776522331021,500.0,0.00024657,120]
[420742892,1776522331240,500.0,0.00024657,120]
[420742893,1776522331479,500.0,0.00024657,120]
[420742894,1776522331839,500.0,0.00024657,120]
[420742895,1776522332099,500.0,0.00024657,120]
[420742896,1776522332346,500.0,0.00024657,120]
[420742897,1776522332568,500.0,0.00024657,120]
[420742898,1776522332802,234.78,0.00024657,120]
[420742902,1776522359168,500.0,0.00024657,120]
[420742903,1776522359427,500.0,0.00024657,120]
[420742908,1776522426299,500.0,0.00024657,120]
[420742909,1776522426525,500.0,0.00024657,120]
[420742910,1776522426744,200.37251857,0.00024657,120]
[420743040,1776522638381,-3884.6563,6.263e-05,2]
[420743041,1776522638390,-5000.0,6.326e-05,2]
[420743042,1776522638399,-656.8489482,6.591e-05,2]
[420743043,1776522638410,-300.0,6.649e-05,2]
[420743044,1776522638421,-265.9683468,6.653e-05,2]
[420743045,1776522638430,-1259.01326953,7.153e-05,2]
[420743046,1776522638440,-151.0,7.24e-05,2]
[420743047,1776522638450,-2510.11719935,7.253e-05,2]
[420743048,1776522638459,-420.0,7.314e-05,2]
[420743049,1776522638468,-3761.22112917,7.353e-05,2]
[420743050,1776522638477,-376.43867872,7.433e-05,2]
[420743051,1776522638487,-537.6845,7.433e-05,2]
[420743052,1776522638496,-168.3888056,7.433e-05,2]
[420743053,1776522638505,-653.61844333,7.433e-05,2]
[420743054,1776522638517,-1497.11955667,7.433e-05,2]
[420743055,1776522638528,-300.0,7.44e-05,2]
[420743056,1776522638538,-29.05644333,7.44e-05,2]
[420743057,1776522638598,-298.78993311,6.358e-05,2]
[420743058,1776522638607,-270.94355667,7.44e-05,2]
[420743059,1776522638616,-300.0,7.44e-05,2]
[420743061,1776522638625,-300.0,7.44e-05,2]
[420743063,1776522638634,-300.0,7.44e-05,2]
[420743065,1776522638643,-300.0,7.44e-05,2]
[420743066,1776522638652,-300.0,7.44e-05,2]
[420743067,1776522638662,-300.0,7.44e-05,2]
[420743068,1776522638671,-300.0,7.44e-05,2]
[420743069,1776522638679,-300.0,7.44e-05,2]
[420743070,1776522638689,-300.0,7.44e-05,2]
[420743071,1776522638699,-300.0,7.44e-05,2]
[420743072,1776522638709,-300.0,7.44e-05,2]
[420743073,1776522638718,-300.0,7.44e-05,2]
[420743074,1776522638728,-300.0,7.44e-05,2]
[420743075,1776522638739,-500.0,7.44e-05,2]
[420743076,1776522638748,-4195.82919481,7.517e-05,2]
[420743077,1776522638757,-600.0,7.588e-05,2]
[420743078,1776522638766,-438.44861291,7.981e-05,2]
[420743079,1776522638775,-2230.315306,7.981e-05,2]
[420743080,1776522638784,-587.0,8.045e-05,2]
[420743081,1776522638793,-180.86933223,8.065e-05,2]
[420743082,1776522638803,-441.0,8.099e-05,2]
[420743083,1776522638811,-184.0,8.099e-05,2]
[420743084,1776522638821,-720.0,8.347e-05,2]
[420743085,1776522638830,-4992.15531768,8.356e-05,2]
[420743086,1776522638839,-250.0,8.443e-05,2]
[420743087,1776522638848,-2312.83697232,8.529e-05,2]
[420743088,1776522638859,-823.0,8.85e-05,2]
[420743089,1776522638868,-523.1787536,9.077e-05,2]
[420743090,1776522638879,-334.1682569,9.083e-05,2]
[420743091,1776522638888,-500.0,9.087e-05,2]
[420743092,1776522638897,-500.0,9.087e-05,2]
[420743093,1776522638906,-500.0,9.087e-05,2]
[420743094,1776522638915,-500.0,9.087e-05,2]
[420743095,1776522638925,-500.0,9.087e-05,2]
[420743096,1776522638934,-500.0,9.087e-05,2]
[420743097,1776522638943,-500.0,9.087e-05,2]
[420743098,1776522638952,-500.0,9.087e-05,2]
[420743099,1776522638962,-500.0,9.087e-05,2]
[420743100,1776522638971,-500.0,9.087e-05,2]
[420743101,1776522638980,-500.0,9.087e-05,2]
[420743102,1776522638989,-500.0,9.087e-05,2]
[420743103,1776522638998,-500.0,9.087e-05,2]
[420743104,1776522639007,-500.0,9.087e-05,2]
[420743105,1776522639016,-500.0,9.087e-05,2]
[420743106,1776522639025,-500.0,9.087e-05,2]
[420743107,1776522639034,-500.0,9.087e-05,2]
[420743108,1776522639043,-500.0,9.087e-05,2]
[420743109,1776522639055,-500.0,9.087e-05,2]
[420743110,1776522639066,-500.0,9.087e-05,2]
[420743111,1776522639077,-500.0,9.087e-05,2]
[420743112,1776522639087,-500.0,9.087e-05,2]
[420743113,1776522639096,-500.0,9.087e-05,2]
[420743114,1776522639104,-500.0,9.087e-05,2]
[420743115,1776522639114,-500.0,9.087e-05,2]
[420743116,1776522639123,-500.0,9.087e-05,2]
[420743117,1776522639135,-500.0,9.087e-05,2]
[420743118,1776522639144,-500.0,9.087e-05,2]
[420743119,1776522639153,-500.0,9.087e-05,2]
[420743120,1776522639162,-500.0,9.087e-05,2]
[420743121,1776522639171,-500.0,9.087e-05,2]
[420743122,1776522639181,-436.37812675,9.087e-05,2]
[420743123,1776522639192,-500.0,9.087e-05,2]
[420743124,1776522639202,-500.0,9.087e-05,2]
[420743125,1776522639212,-500.0,9.087e-05,2]
[420743126,1776522639220,-444.88493043,9.087e-05,2]
[420743127,1776522639232,-55.11506957,9.087e-05,2]
[420743128,1776522639242,-500.0,9.087e-05,2]
[420743129,1776522639252,-500.0,9.087e-05,2]
[420743130,1776522639260,-268.36633942,9.087e-05,2]
[420743131,1776522639270,-500.0,9.087e-05,2]
[420743132,1776522639279,-500.0,9.087e-05,2]
[420743133,1776522639288,-500.0,9.087e-05,2]
[420743134,1776522639297,-500.0,9.087e-05,2]
[420743135,1776522639305,-500.0,9.087e-05,2]
[420743136,1776522639314,-500.0,9.087e-05,2]
[420743137,1776522639323,-500.0,9.087e-05,2]
[420743138,1776522639333,-29447.53506821,9.089e-05,2]
[420743139,1776522639342,-4692.59109384,9.107e-05,2]
[420743140,1776522639351,-500.0,9.122e-05,2]
[420743141,1776522639361,-180.19109769,9.122e-05,2]
[420743142,1776522639370,-7062.3625351,9.123e-05,2]
[420743143,1776522639379,-864.0,9.181e-05,2]
[420743144,1776522639389,-8256.88168733,9.189e-05,2]
[420743145,1776522639399,-5012.32505899,9.195e-05,2]
[420743146,1776522639408,-160.0,9.197e-05,3]
[420743147,1776522639418,-1336.6730276,9.347e-05,2]
[420743148,1776522639427,-455.6765822,9.482e-05,2]
[420743149,1776522639436,-151.0,9.482e-05,2]
[420743150,1776522639444,-151.0,9.58e-05,2]
[420743151,1776522639454,-178.2405254,9.589e-05,2]
[420743152,1776522639464,-3007.51431211,9.61e-05,2]
[420743153,1776522639473,-1152.0,9.735e-05,2]
[420743154,1776522639482,-296.78986664,9.743e-05,2]
[420743155,1776522639491,-394.78700692,9.8e-05,2]
[420743156,1776522639500,-5341.3454183,9.874e-05,2]
[420743157,1776522639509,-363.13274046,9.903e-05,2]
[420743158,1776522639518,-500.0,9.973e-05,2]
[420743159,1776522639527,-500.0,9.973e-05,2]
[420743160,1776522639536,-1153511.66810992,0.0001,2]
[420743161,1776522639545,-580.08449639,0.0001,2]
[420743162,1776522639554,-637.00857508,0.0001,2]
[420743163,1776522639563,-36000.0,0.0001,2]
[420743165,1776522639572,-659.27532626,0.0001,2]
[420743166,1776522639581,-3947.16844758,0.0001,2]
[420743167,1776522639591,-391.16439315,0.0001,2]
[420743168,1776522639600,-1279.67962159,0.0001,2]
[420743169,1776522639609,-1142.89397076,0.0001,2]
[420743171,1776522639618,-485.72128813,0.0001,2]
[420743172,1776522639628,-25535.13117974,0.0001,2]
[420743173,1776522639638,-690.31471219,0.0001,2]
[420743174,1776522639647,-2530.53149991,0.0001,2]
[420743175,1776522639657,-250.77567164,0.0001,2]
[420743176,1776522639666,-1114.8693119,0.0001,2]
[420743177,1776522639675,-304.93140816,0.0001,2]
[420743178,1776522639684,-214.21312809,0.0001,2]
[420743179,1776522639694,-214.21312809,0.0001,2]
[420743180,1776522639704,-1139.0,0.0001,2]
[420743181,1776522639714,-160.0,0.0001,4]
[420743182,1776522639723,-160.93290799,0.0001,5]
[420743183,1776522639733,-180.0,0.0001,2]
[420743184,1776522639742,-151.0,0.0001,2]
[420743185,1776522639751,-151.0,0.0001,2]
[420743186,1776522639761,-151.0,0.0001,2]
[420743187,1776522639770,-151.0,0.0001,2]
[420743188,1776522639780,-151.0,0.0001,2]
[420743189,1776522639789,-151.0,0.0001,2]
[420743190,1776522639798,-151.0,0.0001,2]
[420743191,1776522639808,-151.0,0.0001,2]
[420743192,1776522639817,-151.0,0.0001,2]
[420743194,1776522639827,-151.0,0.0001,2]
[420743196,1776522639836,-151.0,0.0001,2]
[420743198,1776522639846,-151.0,0.0001,2]
[420743199,1776522639855,-151.0,0.0001,2]
[420743200,1776522639864,-151.0,0.0001,2]
[420743201,1776522639872,-151.0,0.0001,2]
[420743203,1776522639882,-151.0,0.0001,2]
[420743204,1776522639891,-151.0,0.0001,2]
[420743205,1776522639900,-151.0,0.0001,2]
[420743206,1776522639910,-151.0,0.0001,2]
[420743207,1776522639921,-151.0,0.0001,2]
[420743208,1776522639931,-923.14,0.00010006,2]
[420743210,1776522639940,-978.88,0.00010006,2]
[420743212,1776522639949,-1092.11,0.00010015,2]
[420743214,1776522639959,-199.23,0.00010015,2]
[420743215,1776522639968,-160.47,0.00010015,2]
[420743216,1776522639978,-161.19,0.00010016,2]
[420743217,1776522639987,-1246.4,0.00010017,2]
[420743218,1776522639996,-162.66,0.00010018,2]
[420743219,1776522640006,-1435.39,0.00010018,2]
[420743220,1776522640015,-164.67,0.0001002,2]
[420743221,1776522640024,-5788.48144071,0.00010034,2]
[420743222,1776522640034,-167.15,0.00010046,2]
[420743223,1776522640043,-232.22,0.00010046,2]
[420743224,1776522640053,-1000.0,0.00010099,2]
[420743225,1776522640062,-325.1340564,0.00010304,2]
[420743226,1776522640071,-454.7149268,0.00010304,2]
[420743227,1776522640080,-325.2847064,0.00010304,2]
[420743228,1776522640089,-151.0,0.000104,5]
[420743230,1776522640099,-250.0,0.00010411,2]
[420743231,1776522640108,-1000.0,0.00010521,2]
[420743233,1776522640117,-1000.0,0.00010521,2]
[420743234,1776522640126,-1139.0,0.00010548,2]
[420743235,1776522640134,-428.37930099,0.00010618,2]
[420743236,1776522640143,-1191.0,0.00010708,2]
[420743238,1776522640154,-193.41,0.00010774,2]
[420743240,1776522640163,-20000.0,0.000109,2]
[420743241,1776522640172,-17116.44005685,0.000109,2]
[420743242,1776522640181,-500.0,0.00010958,2]
[420743243,1776522640190,-500.0,0.00010958,3]
[420743244,1776522640199,-500.0,0.00010958,4]
[420743245,1776522640208,-500.0,0.00010958,5]
[420743246,1776522640217,-500.0,0.00010958,6]
[420743247,1776522640226,-500.0,0.00010958,7]
[420743248,1776522640235,-500.0,0.00010958,8]
[420743249,1776522640244,-500.0,0.00010958,9]
[420743250,1776522640254,-500.0,0.00010958,10]
[420743251,1776522640263,-500.0,0.00010958,11]
[420743252,1776522640272,-500.0,0.00010958,12]
[420743253,1776522640282,-500.0,0.00010958,13]
[420743254,1776522640291,-500.0,0.00010958,14]
[420743255,1776522640300,-500.0,0.00010958,15]
[420743256,1776522640309,-500.0,0.00010958,16]
[420743257,1776522640318,-225.14522831,0.00010958,17]
[420743258,1776522640327,-800.0,0.00010959,2]
[420743259,1776522640336,-800.0,0.00010959,2]
[420743260,1776522640345,-314.94325616,0.00010959,3]
[420743261,1776522640354,-1575.0,0.00010959,2]
[420743262,1776522640363,-617.69,0.00010959,2]
[420743263,1776522640372,-617.69,0.00010959,2]
[420743264,1776522640381,-1235.38,0.00010959,2]
[420743265,1776522640390,-617.69,0.00010959,2]
[420743266,1776522640399,-617.69,0.00010959,2]
[420743267,1776522640409,-1235.38,0.00010959,2]
[420743268,1776522640418,-1235.38,0.00010959,2]
[420743269,1776522640427,-200.17062328,0.00010959,2]
[420743270,1776522640436,-200.0,0.00010959,2]
[420743271,1776522640445,-154.0,0.00010959,2]
[420743272,1776522640454,-154.0,0.00010959,2]
[420743273,1776522640464,-295.30362048,0.00010959,2]
[420743274,1776522640472,-154.0,0.00010959,2]
[420743276,1776522640482,-247.84097489,0.00010959,2]
[420743277,1776522640493,-203.59833845,0.00010959,2]
[420743278,1776522640503,-200.24768975,0.00010959,2]
[420743279,1776522640513,-15380.3736,0.00010959,2]
[420743280,1776522640525,-151.5,0.00010959,30]
[420743281,1776522640534,-151.5,0.00010959,30]
[420743282,1776522640543,-151.5,0.00010959,30]
[420743283,1776522640554,-272.5,0.00010959,30]
[420743284,1776522640563,-150.0,0.0001096,2]
[420743285,1776522640572,-545650.80819276,0.00011,2]
[420743286,1776522640581,-2032.0,0.00011,2]
[420743287,1776522640590,-300.0,0.00011,2]
[420743288,1776522640599,-194.0,0.00011,2]
[420743289,1776522640608,-151.0,0.00011,2]
[420743290,1776522640618,-151.0,0.00011,2]
[420743291,1776522640628,-151.0,0.00011,2]
[420743292,1776522640636,-151.0,0.00011,2]
[420743293,1776522640647,-151.0,0.00011,2]
[420743294,1776522640657,-151.0,0.00011,2]
[420743295,1776522640666,-1500.0,0.00011068,2]
[420743296,1776522640675,-1500.0,0.00011068,2]
[420743297,1776522640684,-1129.02,0.00011096,2]
[420743298,1776522640694,-441.0,0.00011099,2]
[420743299,1776522640703,-184.0,0.00011099,2]
[420743300,1776522640712,-1000.0,0.00011109,2]
[420743301,1776522640722,-244.0,0.00011109,2]
[420743302,1776522640740,-455.6840661,0.0001113,2]
[420743303,1776522640751,-197.7189515,0.0001113,2]
[420743304,1776522640761,-325.2695583,0.0001113,2]
[420743305,1776522640770,-150.0,0.0001126,2]
[420743306,1776522640780,-165.45487492,0.000114,5]
[420743307,1776522640790,-150.0,0.0001156,2]
[420743308,1776522640799,-2000.0,0.00011616,2]
[420743309,1776522640809,-2000.0,0.00011616,2]
[420743310,1776522640818,-6584.80756373,0.00011711,2]
[420743311,1776522640828,-150.0,0.0001186,2]
[420743312,1776522640838,-20000.0,0.000119,2]
[420743313,1776522640848,-2006.9519813,0.00011911,2]
[420743314,1776522640858,-1329.34966298,0.0001194,4]
[420743315,1776522640867,-325.2847064,0.00011944,2]
[420743316,1776522640876,-455.6765822,0.0001196,2]
[420743317,1776522640886,-625539.99381386,0.00012,2]
[420743318,1776522640895,-350.75576527,0.00012,2]
[420743319,1776522640905,-7000.0,0.00012,90]
[420743320,1776522641141,-10279.19566075,0.00012,2]
[420743321,1776522641151,-151.0,0.00012,2]
[420743322,1776522641162,-279.0,0.00012055,3]
[420743323,1776522641171,-150.0,0.0001216,2]
[420743324,1776522641182,-2500.0,0.00012164,2]
[420743325,1776522641191,-2500.0,0.00012164,2]
[420743326,1776522641201,-1000.0,0.0001222,2]
[420743327,1776522641211,-492.0,0.0001222,2]
[420743328,1776522641220,-5000.0,0.000123,2]
[420743329,1776522641229,-800.0,0.00012329,12]
[420743330,1776522641238,-800.0,0.00012329,12]
[420743331,1776522641247,-21674.78,0.00012329,2]
[420743332,1776522641256,-18282.66,0.00012329,2]
[420743333,1776522641266,-15235.55,0.00012329,2]
[420743334,1776522641275,-12696.29,0.00012329,2]
[420743335,1776522641284,-10580.24,0.00012329,2]
[420743336,1776522641293,-8816.87,0.00012329,2]
[420743337,1776522641302,-7347.39,0.00012329,2]
[420743338,1776522641311,-6122.82,0.00012329,2]
[420743339,1776522641321,-5102.35,0.00012329,2]
[420743340,1776522641330,-4251.96,0.00012329,2]
[420743341,1776522641340,-3543.3,0.00012329,2]
[420743342,1776522641350,-2952.75,0.00012329,2]
[420743343,1776522641360,-722.88085203,0.00012329,2]
[420743344,1776522641374,-1737.74914797,0.00012329,2]
[420743345,1776522641383,-2050.52,0.00012329,2]
[420743346,1776522641392,-1708.77,0.00012329,2]
[420743347,1776522641402,-378.07087748,0.00012329,2]
[420743348,1776522641668,500.0,0.00024657,120]
[420743349,1776522641731,500.0,0.00024657,120]
[420743350,1776522641807,500.0,0.00024657,120]
[420743351,1776522641893,156.46,0.00024657,120]
[420743363,1776522643469,-352.57212106,8.358e-05,2]
[420743364,1776522643479,-263.19133795,9.8e-05,2]
[420743365,1776522643489,-406.35430902,0.00010358,2]
[420743366,1776522643498,-151.0,0.00012,2]
[420743367,1776522643507,-151.0,0.00012,2]
[420743368,1776522643517,-1045.89912252,0.00012329,2]
[420743369,1776522643527,-1186.65,0.00012329,2]
[420743370,1776522643537,-988.87,0.00012329,2]
[420743371,1776522643547,-576.09044502,0.00012329,2]
[420743372,1776522643560,-247.96955498,0.00012329,2]
[420743373,1776522643570,-674.03294502,0.00012329,2]
[420743374,1776522646427,-175.46089197,0.00012082,2]
[420743375,1776522646437,-12.68705498,0.00012329,2]
[420743376,1776522646446,-572.26,0.00012329,2]
[420743377,1776522646455,-476.89,0.00012329,2]
[420743378,1776522646465,-460.13649698,0.00012358,2]
[420743379,1776522646474,-150.0,0.0001246,2]
[420743380,1776522646483,-5964.20149572,0.000125,2]
[420743391,1776522660096,514.8,0.00024657,120]
[420743393,1776522683372,500.0,0.00024657,120]
[420743394,1776522683749,527.71,0.00024657,120]
[420743395,1776522684702,500.0,0.00024657,120]
[420743396,1776522687779,1810.06393297,0.0002353,120]
[420743397,1776522691644,575.27,0.00024657,120]
[420743398,1776522692890,500.0,0.00024657,120]
[420743402,1776522700281,500.0,0.00024657,120]
[420743403,1776522701838,500.0,0.00024657,120]
[420743406,1776522704629,500.0,0.00024657,120]
[420743409,1776522706579,500.0,0.00024657,120]
[420743410,1776522706898,500.0,0.00024657,120]
[420743411,1776522707085,486.68,0.00024657,120]
[420743412,1776522709296,500.0,0.00024657,120]
[420743413,1776522709530,557.91,0.00024657,120]
[420743415,1776522714613,500.0,0.00024657,120]
[420743416,1776522719258,500.0,0.00024657,120]
[420743417,1776522719419,500.0,0.00024657,120]
[420743418,1776522721501,500.0,0.00024657,120]
[420743419,1776522723847,500.0,0.00024657,120]
[420743420,1776522724088,500.0,0.00024657,120]
[420743422,1776522724347,432.92,0.00024657,120]
[420743423,1776522724998,500.0,0.00024657,120]
[420743424,1776522725758,202.98662946,0.00024657,120]
[420743426,1776522735740,500.0,0.00024657,120]
[420743427,1776522736788,500.0,0.00024657,120]
[420743428,1776522738600,500.0,0.00024657,120]
[420743429,1776522738878,445.99,0.00024657,120]
[420743430,1776522740770,500.0,0.00024657,120]
[420743431,1776522742454,500.0,0.00024657,120]
[420743432,1776522742599,500.0,0.00024657,120]
[420743433,1776522742892,500.0,0.00024657,120]
[420743434,1776522743150,248.39,0.00024657,120]
[420743435,1776522747317,500.0,0.00024657,120]
[420743436,1776522747712,478.16,0.00024657,120]